[Event "*** Titled Tuesday Blitz"]
[Site "Chess.com"]
[Date "2020.04.28"]
[Round "6"]
[White "ajian"]
[Black "claudyna16"]
[Result "1-0"]
[WhiteElo "2356"]
[BlackElo "2509"]
[TimeControl "180+1"]
[EndTime "11:05:46 PDT"]
[Termination "ajian won by checkmate"]

1. d4 {[%clk 0:03:00.9]} 1... Nf6 {[%clk 0:02:59.5]} 2. c4 {[%clk 0:03:01]} 2...
g6 {[%clk 0:02:59.9]} 3. Nc3 {[%clk 0:03:01.1]} 3... Bg7 {[%clk 0:03:00.5]} 4.
e4 {[%clk 0:03:01.2]} 4... d6 {[%clk 0:03:01.3]} 5. Nf3 {[%clk 0:03:01.4]} 5...
O-O {[%clk 0:03:00.7]} 6. Be2 {[%clk 0:03:01.6]} 6... e5 {[%clk 0:03:00.9]} 7.
d5 {[%clk 0:03:01.6]} 7... Na6 {[%clk 0:03:00.3]} 8. Bg5 {[%clk 0:03:01.3]} 8...
h6 {[%clk 0:02:59.8]} 9. Bh4 {[%clk 0:03:01.3]} 9... g5 {[%clk 0:02:59.5]} 10.
Bg3 {[%clk 0:03:01.1]} 10... Nc5 {[%clk 0:03:00]} 11. Nd2 {[%clk 0:03:00.8]}
11... a5 {[%clk 0:02:55.1]} 12. O-O {[%clk 0:02:59.6]} 12... Bd7 {[%clk
0:02:47.9]} 13. b3 {[%clk 0:02:58.8]} 13... Ne8 {[%clk 0:02:44.1]} 14. a3 {[%clk
0:02:49.3]} 14... f5 {[%clk 0:02:41.7]} 15. f3 {[%clk 0:02:49.2]} 15... f4
{[%clk 0:02:34.5]} 16. Bf2 {[%clk 0:02:49.6]} 16... h5 {[%clk 0:02:34.9]} 17. b4
{[%clk 0:02:44.8]} 17... axb4 {[%clk 0:02:33]} 18. axb4 {[%clk 0:02:45.7]} 18...
Na6 {[%clk 0:02:32.7]} 19. Qb3 {[%clk 0:02:36.3]} 19... b6 {[%clk 0:02:32]} 20.
c5 {[%clk 0:02:32.4]} 20... Nxb4 {[%clk 0:02:11.8]} 21. cxb6 {[%clk 0:02:16.9]}
21... Rxa1 {[%clk 0:02:09.1]} 22. Rxa1 {[%clk 0:02:16.3]} 22... g4 {[%clk
0:01:48.4]} 23. b7 {[%clk 0:02:00]} 23... g3 {[%clk 0:01:47.1]} 24. Qxb4 {[%clk
0:01:29.7]} 24... gxf2+ {[%clk 0:01:46.8]} 25. Kxf2 {[%clk 0:01:27.4]} 25... Nf6
{[%clk 0:01:44.5]} 26. Ra8 {[%clk 0:01:22.8]} 26... Qxa8 {[%clk 0:01:43]} 27.
bxa8=Q {[%clk 0:01:22.2]} 27... Rxa8 {[%clk 0:01:43.9]} 28. Qb7 {[%clk
0:01:14.1]} 28... Ra1 {[%clk 0:01:40]} 29. Qxc7 {[%clk 0:01:11]} 29... Be8
{[%clk 0:01:40.3]} 30. Bb5 {[%clk 0:00:59.8]} 30... Bf7 {[%clk 0:01:36.6]} 31.
Qxd6 {[%clk 0:00:55.9]} 31... Nh7 {[%clk 0:01:32]} 32. Qd8+ {[%clk 0:00:53.1]}
32... Bf8 {[%clk 0:01:31]} 33. d6 {[%clk 0:00:52]} 33... Kg7 {[%clk 0:01:31.3]}
34. Bc4 {[%clk 0:00:50.2]} 34... Nf6 {[%clk 0:01:25.4]} 35. Bxf7 {[%clk
0:00:48.8]} 35... Kxf7 {[%clk 0:01:26.3]} 36. Qc7+ {[%clk 0:00:46.4]} 36... Kg6
{[%clk 0:01:25.2]} 37. d7 {[%clk 0:00:41.5]} 37... Nxd7 {[%clk 0:01:24.3]} 38.
Qxd7 {[%clk 0:00:41.5]} 38... Bc5+ {[%clk 0:01:25.2]} 39. Ke2 {[%clk 0:00:38.9]}
39... Bd4 {[%clk 0:01:25.5]} 40. Nd5 {[%clk 0:00:32.5]} 40... Rg1 {[%clk
0:01:24.3]} 41. Qf5+ {[%clk 0:00:32]} 41... Kg7 {[%clk 0:01:23.7]} 42. Qf6+
{[%clk 0:00:32.2]} 42... Kg8 {[%clk 0:01:23.3]} 43. Ne7+ {[%clk 0:00:32]} 43...
Kh7 {[%clk 0:01:23.8]} 44. Qg6+ {[%clk 0:00:31.1]} 44... Kh8 {[%clk 0:01:24.7]}
45. Qh6# {[%clk 0:00:25.7]} 1-0

[Event "*** Titled Tuesday Blitz"]
[Site "Chess.com"]
[Date "2020.04.28"]
[Round "6"]
[White "DenishevM"]
[Black "Alopekos"]
[Result "0-1"]
[WhiteElo "2554"]
[BlackElo "2405"]
[TimeControl "180+1"]
[EndTime "11:05:47 PDT"]
[Termination "Alopekos won by resignation"]

1. d4 {[%clk 0:03:00.9]} 1... Nf6 {[%clk 0:02:59]} 2. c4 {[%clk 0:03:00.4]} 2...
e6 {[%clk 0:02:59]} 3. Nf3 {[%clk 0:02:59.9]} 3... d5 {[%clk 0:02:58.3]} 4. Nc3
{[%clk 0:03:00.2]} 4... c5 {[%clk 0:02:57.7]} 5. cxd5 {[%clk 0:02:59.9]} 5...
Nxd5 {[%clk 0:02:58.6]} 6. e4 {[%clk 0:02:59.5]} 6... Nxc3 {[%clk 0:02:59]} 7.
bxc3 {[%clk 0:03:00.4]} 7... cxd4 {[%clk 0:02:59.9]} 8. cxd4 {[%clk 0:03:01.3]}
8... Bb4+ {[%clk 0:03:00.2]} 9. Bd2 {[%clk 0:03:01.2]} 9... Bxd2+ {[%clk
0:03:00.7]} 10. Qxd2 {[%clk 0:03:02.1]} 10... O-O {[%clk 0:03:01.1]} 11. Bc4
{[%clk 0:02:54]} 11... b6 {[%clk 0:02:55.7]} 12. O-O {[%clk 0:02:53.8]} 12...
Bb7 {[%clk 0:02:56.1]} 13. Rfe1 {[%clk 0:02:54.3]} 13... Nd7 {[%clk 0:02:56.3]}
14. Rad1 {[%clk 0:02:53.3]} 14... Nf6 {[%clk 0:02:56.8]} 15. Qf4 {[%clk
0:02:52.9]} 15... Rc8 {[%clk 0:02:56.8]} 16. Bd3 {[%clk 0:02:52.8]} 16... Qc7
{[%clk 0:02:54.3]} 17. e5 {[%clk 0:02:48]} 17... Bxf3 {[%clk 0:02:25.8]} 18.
Qxf3 {[%clk 0:02:43.3]} 18... Nd5 {[%clk 0:02:25.6]} 19. Re4 {[%clk 0:02:31.8]}
19... f5 {[%clk 0:01:45.1]} 20. exf6 {[%clk 0:02:27.2]} 20... Rxf6 {[%clk
0:01:44.9]} 21. Qh3 {[%clk 0:02:17.6]} 21... Nf4 {[%clk 0:01:16.1]} 22. Qe3
{[%clk 0:01:54.3]} 22... Nd5 {[%clk 0:00:48.2]} 23. Qg3 {[%clk 0:01:42.5]} 23...
Qxg3 {[%clk 0:00:45.6]} 24. hxg3 {[%clk 0:01:43.4]} 24... Nc3 {[%clk 0:00:45.3]}
25. Ree1 {[%clk 0:01:36.7]} 25... Nxd1 {[%clk 0:00:43.8]} 26. Rxd1 {[%clk
0:01:37.6]} 26... g5 {[%clk 0:00:24.5]} 27. Be4 {[%clk 0:01:30.3]} 27... h6
{[%clk 0:00:19]} 28. d5 {[%clk 0:01:26.9]} 28... exd5 {[%clk 0:00:19.9]} 29.
Bxd5+ {[%clk 0:01:25.4]} 29... Kg7 {[%clk 0:00:19.7]} 30. Bb3 {[%clk 0:01:24]}
30... Rc7 {[%clk 0:00:15.7]} 31. f3 {[%clk 0:01:23.7]} 31... b5 {[%clk
0:00:13.4]} 32. Rd8 {[%clk 0:01:20.9]} 32... Rf8 {[%clk 0:00:10.1]} 33. Rd6
{[%clk 0:01:20]} 33... a5 {[%clk 0:00:08.8]} 34. Rg6+ {[%clk 0:01:19.2]} 34...
Kxg6 {[%clk 0:00:08.6]} 0-1

[Event "*** Titled Tuesday Blitz"]
[Site "Chess.com"]
[Date "2020.04.28"]
[Round "6"]
[White "TST2014"]
[Black "abubakrtagelsir"]
[Result "1-0"]
[WhiteElo "2605"]
[BlackElo "2357"]
[TimeControl "180+1"]
[EndTime "11:05:49 PDT"]
[Termination "TST2014 won by resignation"]

1. d4 {[%clk 0:02:13.3]} 1... Nf6 {[%clk 0:02:59.2]} 2. c4 {[%clk 0:02:12.9]}
2... g6 {[%clk 0:02:58.9]} 3. Nf3 {[%clk 0:02:12.9]} 3... Bg7 {[%clk 0:02:58.9]}
4. Nc3 {[%clk 0:02:12.9]} 4... d6 {[%clk 0:02:58.6]} 5. e4 {[%clk 0:02:12.9]}
5... O-O {[%clk 0:02:56.6]} 6. Be2 {[%clk 0:02:13.8]} 6... Na6 {[%clk
0:02:55.6]} 7. O-O {[%clk 0:02:13.6]} 7... e5 {[%clk 0:02:55.3]} 8. Be3 {[%clk
0:02:12.8]} 8... Ng4 {[%clk 0:02:52.5]} 9. Bg5 {[%clk 0:02:12.5]} 9... Qe8
{[%clk 0:02:51.8]} 10. dxe5 {[%clk 0:02:04.7]} 10... dxe5 {[%clk 0:02:51.1]} 11.
h3 {[%clk 0:02:03.9]} 11... f6 {[%clk 0:02:50.4]} 12. Bd2 {[%clk 0:01:59]} 12...
Nh6 {[%clk 0:02:48.8]} 13. Be3 {[%clk 0:01:56.8]} 13... c6 {[%clk 0:02:41.7]}
14. c5 {[%clk 0:01:48.4]} 14... Nf7 {[%clk 0:02:30.4]} 15. Nd2 {[%clk
0:01:45.3]} 15... Qe7 {[%clk 0:02:28.6]} 16. Na4 {[%clk 0:01:35.3]} 16... Be6
{[%clk 0:02:23.9]} 17. Bc4 {[%clk 0:01:28.1]} 17... Rfd8 {[%clk 0:02:21.8]} 18.
Qb3 {[%clk 0:01:25.8]} 18... Bxc4 {[%clk 0:02:17.2]} 19. Nxc4 {[%clk 0:01:26.7]}
19... Kh8 {[%clk 0:02:13.9]} 20. Na5 {[%clk 0:01:15.6]} 20... Rd7 {[%clk
0:02:11.7]} 21. Rfd1 {[%clk 0:01:14.8]} 21... Rad8 {[%clk 0:02:10.2]} 22. Rxd7
{[%clk 0:01:05.6]} 22... Rxd7 {[%clk 0:02:09.5]} 23. Rd1 {[%clk 0:01:06]} 23...
Rxd1+ {[%clk 0:02:06.9]} 24. Qxd1 {[%clk 0:01:06.4]} 24... Bh6 {[%clk
0:02:05.8]} 25. Bxh6 {[%clk 0:01:04]} 25... Nxh6 {[%clk 0:02:05.3]} 26. Qd6
{[%clk 0:01:04.5]} 26... Qf7 {[%clk 0:01:53.6]} 27. b3 {[%clk 0:00:57.5]} 27...
Kg7 {[%clk 0:01:52.8]} 28. Nb2 {[%clk 0:00:45.6]} 28... Nb4 {[%clk 0:01:43.9]}
29. a3 {[%clk 0:00:42.9]} 29... Nc2 {[%clk 0:01:42.2]} 30. Nbc4 {[%clk
0:00:35.8]} 30... Nd4 {[%clk 0:01:37.3]} 31. Qb8 {[%clk 0:00:33.8]} 31... Nxb3
{[%clk 0:01:26.8]} 32. Nd6 {[%clk 0:00:28.9]} 32... Qd7 {[%clk 0:01:20]} 33.
Nxb3 {[%clk 0:00:27.1]} 33... Nf7 {[%clk 0:01:19.5]} 34. Qxb7 {[%clk 0:00:23.6]}
1-0

[Event "*** Titled Tuesday Blitz"]
[Site "Chess.com"]
[Date "2020.04.28"]
[Round "6"]
[White "SergioGarciaFuentes"]
[Black "LuisFSiles"]
[Result "1-0"]
[WhiteElo "2093"]
[BlackElo "2288"]
[TimeControl "180+1"]
[EndTime "11:05:54 PDT"]
[Termination "SergioGarciaFuentes won by resignation"]

1. Nf3 {[%clk 0:03:00.9]} 1... Nf6 {[%clk 0:02:53.3]} 2. g3 {[%clk 0:02:59.1]}
2... g6 {[%clk 0:02:53.1]} 3. b3 {[%clk 0:02:59.3]} 3... Bg7 {[%clk 0:02:52.7]}
4. Bb2 {[%clk 0:02:59.5]} 4... O-O {[%clk 0:02:52.5]} 5. Bg2 {[%clk 0:03:00]}
5... d6 {[%clk 0:02:50.9]} 6. d4 {[%clk 0:02:59.4]} 6... e5 {[%clk 0:02:43.6]}
7. dxe5 {[%clk 0:02:57.9]} 7... Ng4 {[%clk 0:02:43.6]} 8. h3 {[%clk 0:02:56.7]}
8... Nxe5 {[%clk 0:02:43.2]} 9. Nxe5 {[%clk 0:02:56.9]} 9... dxe5 {[%clk
0:02:42.3]} 10. Qxd8 {[%clk 0:02:52.4]} 10... Rxd8 {[%clk 0:02:43.2]} 11. Nd2
{[%clk 0:02:52.1]} 11... c6 {[%clk 0:02:27.2]} 12. O-O-O {[%clk 0:02:48.7]}
12... Na6 {[%clk 0:02:17.9]} 13. Nc4 {[%clk 0:02:43.3]} 13... Re8 {[%clk
0:02:13.6]} 14. Rd2 {[%clk 0:01:54.4]} 14... f6 {[%clk 0:01:57.8]} 15. Rhd1
{[%clk 0:01:29.8]} 15... Bf8 {[%clk 0:01:51.7]} 16. a3 {[%clk 0:01:19.9]} 16...
Be6 {[%clk 0:01:48.7]} 17. Nd6 {[%clk 0:01:18]} 17... Bxd6 {[%clk 0:01:45]} 18.
Rxd6 {[%clk 0:01:16.4]} 18... Kf7 {[%clk 0:01:35.6]} 19. b4 {[%clk 0:01:06.1]}
19... Nc7 {[%clk 0:01:23]} 20. a4 {[%clk 0:01:04.8]} 20... Ke7 {[%clk 0:01:22]}
21. Ba3 {[%clk 0:00:50.4]} 21... Bd5 {[%clk 0:00:31.2]} 22. b5 {[%clk 0:00:45]}
22... Bxg2 {[%clk 0:00:31]} 23. Rxc6+ {[%clk 0:00:41.1]} 23... Kf7 {[%clk
0:00:27.5]} 24. Rxc7+ {[%clk 0:00:40.7]} 24... Kg8 {[%clk 0:00:28.4]} 25. Rdd7
{[%clk 0:00:40.3]} 25... Rac8 {[%clk 0:00:22.6]} 26. Rg7+ {[%clk 0:00:39.1]}
26... Kh8 {[%clk 0:00:22.9]} 27. Rxh7+ {[%clk 0:00:39.7]} 1-0

[Event "*** Titled Tuesday Blitz"]
[Site "Chess.com"]
[Date "2020.04.28"]
[Round "6"]
[White "violetflower04"]
[Black "Mashenka97"]
[Result "0-1"]
[WhiteElo "2187"]
[BlackElo "2351"]
[TimeControl "180+1"]
[EndTime "11:05:54 PDT"]
[Termination "Mashenka97 won by resignation"]

1. b3 {[%clk 0:03:00.9]} 1... e5 {[%clk 0:02:59.1]} 2. Bb2 {[%clk 0:03:01.5]}
2... d6 {[%clk 0:02:59.2]} 3. e3 {[%clk 0:03:00.7]} 3... Nc6 {[%clk 0:02:57.3]}
4. f4 {[%clk 0:02:59]} 4... Nf6 {[%clk 0:02:54.5]} 5. Nf3 {[%clk 0:02:57.2]}
5... Bg4 {[%clk 0:02:53.1]} 6. Be2 {[%clk 0:02:56.9]} 6... exf4 {[%clk
0:02:51.1]} 7. exf4 {[%clk 0:02:56.8]} 7... Be7 {[%clk 0:02:50.7]} 8. O-O {[%clk
0:02:57.1]} 8... O-O {[%clk 0:02:50]} 9. d3 {[%clk 0:02:55.8]} 9... Re8 {[%clk
0:02:49.3]} 10. Nbd2 {[%clk 0:02:56.1]} 10... Nd5 {[%clk 0:02:48.1]} 11. h3
{[%clk 0:02:35.5]} 11... Ne3 {[%clk 0:02:44.7]} 12. Qc1 {[%clk 0:02:24.9]} 12...
Nxf1 {[%clk 0:02:33.6]} 13. Nxf1 {[%clk 0:02:24.2]} 13... Be6 {[%clk 0:02:28.1]}
14. g4 {[%clk 0:02:22.3]} 14... Bf6 {[%clk 0:02:24.7]} 15. d4 {[%clk 0:02:03.5]}
15... Bd5 {[%clk 0:02:17.3]} 16. Qd2 {[%clk 0:02:04.2]} 16... Qe7 {[%clk
0:02:12.1]} 17. Re1 {[%clk 0:02:03.2]} 17... Bxf3 {[%clk 0:02:10.2]} 18. g5
{[%clk 0:01:58.4]} 18... Bxe2 {[%clk 0:01:52.6]} 19. gxf6 {[%clk 0:01:57.4]}
19... Qxf6 {[%clk 0:01:22.2]} 20. Rxe2 {[%clk 0:01:57.9]} 20... d5 {[%clk
0:01:15.2]} 21. c3 {[%clk 0:01:37]} 21... Re4 {[%clk 0:01:12.9]} 22. Rxe4 {[%clk
0:01:31.7]} 22... dxe4 {[%clk 0:01:12]} 23. c4 {[%clk 0:01:28.3]} 23... Re8
{[%clk 0:01:01.9]} 24. d5 {[%clk 0:01:24.4]} 24... Qg6+ {[%clk 0:01:00.3]} 25.
Kh2 {[%clk 0:01:25.1]} 25... Ne7 {[%clk 0:00:55.4]} 26. Ne3 {[%clk 0:00:41.7]}
26... Nf5 {[%clk 0:00:49.6]} 27. Ng4 {[%clk 0:00:42.3]} 27... f6 {[%clk
0:00:44.3]} 28. c5 {[%clk 0:00:35.4]} 28... h5 {[%clk 0:00:41.4]} 29. Ne3 {[%clk
0:00:33.3]} 29... Qg3+ {[%clk 0:00:38.8]} 0-1

[Event "*** Titled Tuesday Blitz"]
[Site "Chess.com"]
[Date "2020.04.28"]
[Round "6"]
[White "GMSrinath"]
[Black "tylityli"]
[Result "1-0"]
[WhiteElo "2747"]
[BlackElo "2337"]
[TimeControl "180+1"]
[EndTime "11:05:59 PDT"]
[Termination "GMSrinath won by checkmate"]

1. e4 {[%clk 0:03:00.8]} 1... c5 {[%clk 0:02:58.1]} 2. Nf3 {[%clk 0:03:00.3]}
2... e6 {[%clk 0:02:58.3]} 3. d4 {[%clk 0:03:00.2]} 3... cxd4 {[%clk 0:02:57.1]}
4. Nxd4 {[%clk 0:03:01.1]} 4... a6 {[%clk 0:02:57.1]} 5. Nc3 {[%clk 0:03:00]}
5... Nc6 {[%clk 0:02:56.9]} 6. Be2 {[%clk 0:02:58.5]} 6... Qc7 {[%clk
0:02:55.7]} 7. O-O {[%clk 0:02:57.3]} 7... Nf6 {[%clk 0:02:54.6]} 8. Be3 {[%clk
0:02:57.8]} 8... Bb4 {[%clk 0:02:53.4]} 9. Na4 {[%clk 0:02:53.1]} 9... Nxe4
{[%clk 0:02:50.2]} 10. Nxc6 {[%clk 0:02:43.6]} 10... bxc6 {[%clk 0:02:44.3]} 11.
Qd4 {[%clk 0:02:40.2]} 11... Bd6 {[%clk 0:00:49.4]} 12. Qxe4 {[%clk 0:02:39.2]}
12... Bxh2+ {[%clk 0:00:46.8]} 13. Kh1 {[%clk 0:02:38.7]} 13... Bd6 {[%clk
0:00:43.4]} 14. Bb6 {[%clk 0:02:26.2]} 14... Qb8 {[%clk 0:00:40.7]} 15. Rad1
{[%clk 0:02:19.1]} 15... Be7 {[%clk 0:00:39.2]} 16. Bd4 {[%clk 0:02:12.6]} 16...
O-O {[%clk 0:00:37.4]} 17. Nb6 {[%clk 0:02:11.8]} 17... Bb7 {[%clk 0:00:33.3]}
18. Nxd7 {[%clk 0:02:06.8]} 18... Qc8 {[%clk 0:00:32.6]} 19. Nxf8 {[%clk
0:01:59.4]} 19... Bxf8 {[%clk 0:00:32.7]} 20. Bd3 {[%clk 0:01:47.3]} 20... f5
{[%clk 0:00:29.7]} 21. Qe5 {[%clk 0:01:45.1]} 21... c5 {[%clk 0:00:28.3]} 22.
Bc3 {[%clk 0:01:38.6]} 22... Qc6 {[%clk 0:00:27.5]} 23. f3 {[%clk 0:01:38]}
23... c4 {[%clk 0:00:27.3]} 24. Be2 {[%clk 0:01:35.6]} 24... Qe8 {[%clk
0:00:27.7]} 25. Bxc4 {[%clk 0:01:28.5]} 25... Qh5+ {[%clk 0:00:22.8]} 26. Kg1
{[%clk 0:01:27.9]} 26... Kh8 {[%clk 0:00:22.6]} 27. Rd7 {[%clk 0:01:23.5]} 27...
Bc6 {[%clk 0:00:10]} 28. Rxg7 {[%clk 0:01:13.9]} 28... Rc8 {[%clk 0:00:07.4]}
29. Rg6+ {[%clk 0:01:10.3]} 29... Bg7 {[%clk 0:00:06.4]} 30. Qxg7# {[%clk
0:01:10.3]} 1-0

[Event "*** Titled Tuesday Blitz"]
[Site "Chess.com"]
[Date "2020.04.28"]
[Round "6"]
[White "Kosche007"]
[Black "Mizner"]
[Result "0-1"]
[WhiteElo "2303"]
[BlackElo "2473"]
[TimeControl "180+1"]
[EndTime "11:06:00 PDT"]
[Termination "Mizner won on time"]

1. e4 {[%clk 0:03:00.9]} 1... e6 {[%clk 0:02:59.8]} 2. d4 {[%clk 0:03:00.2]}
2... d5 {[%clk 0:03:00.7]} 3. Nd2 {[%clk 0:03:00.8]} 3... c5 {[%clk 0:03:00.1]}
4. Ngf3 {[%clk 0:03:00.2]} 4... cxd4 {[%clk 0:03:00.4]} 5. exd5 {[%clk
0:03:00.3]} 5... Qxd5 {[%clk 0:03:01.3]} 6. Bc4 {[%clk 0:03:00.6]} 6... Qc5
{[%clk 0:03:01.7]} 7. Qe2 {[%clk 0:02:58.4]} 7... Nc6 {[%clk 0:03:00]} 8. Nb3
{[%clk 0:02:57.8]} 8... Qb6 {[%clk 0:02:53.4]} 9. O-O {[%clk 0:02:55.7]} 9...
Nge7 {[%clk 0:02:41.9]} 10. Rd1 {[%clk 0:02:53]} 10... Nf5 {[%clk 0:02:41.6]}
11. a4 {[%clk 0:02:40.5]} 11... Be7 {[%clk 0:02:23]} 12. a5 {[%clk 0:02:37.3]}
12... Qc7 {[%clk 0:02:19.3]} 13. Nbxd4 {[%clk 0:02:33.5]} 13... Nfxd4 {[%clk
0:02:15.3]} 14. Nxd4 {[%clk 0:02:34.4]} 14... Nxd4 {[%clk 0:02:15.1]} 15. Rxd4
{[%clk 0:02:32.7]} 15... O-O {[%clk 0:02:12]} 16. Bf4 {[%clk 0:02:29]} 16... Qc5
{[%clk 0:02:03.4]} 17. c3 {[%clk 0:02:09.5]} 17... Rd8 {[%clk 0:01:45.8]} 18. b4
{[%clk 0:01:54.2]} 18... Qc6 {[%clk 0:01:45.5]} 19. Rxd8+ {[%clk 0:01:45.6]}
19... Bxd8 {[%clk 0:01:44.7]} 20. Rd1 {[%clk 0:01:40.4]} 20... Bd7 {[%clk
0:01:44.8]} 21. Rd6 {[%clk 0:01:20.4]} 21... Qc8 {[%clk 0:01:37.8]} 22. Qd3
{[%clk 0:01:12.4]} 22... Bc6 {[%clk 0:01:28]} 23. b5 {[%clk 0:01:04.7]} 23...
Be8 {[%clk 0:01:22.3]} 24. a6 {[%clk 0:00:41]} 24... bxa6 {[%clk 0:01:17.5]} 25.
bxa6 {[%clk 0:00:27.9]} 25... Bc7 {[%clk 0:00:59.3]} 26. Rd4 {[%clk 0:00:13.2]}
26... e5 {[%clk 0:00:59.3]} 27. Bd5 {[%clk 0:00:04.7]} 27... Rb8 {[%clk
0:00:56.6]} 0-1

[Event "*** Titled Tuesday Blitz"]
[Site "Chess.com"]
[Date "2020.04.28"]
[Round "6"]
[White "Jumbo"]
[Black "lolo9292"]
[Result "1-0"]
[WhiteElo "2751"]
[BlackElo "2487"]
[TimeControl "180+1"]
[EndTime "11:06:01 PDT"]
[Termination "Jumbo won by resignation"]

1. d4 {[%clk 0:03:00.9]} 1... Nf6 {[%clk 0:03:00.1]} 2. Bf4 {[%clk 0:03:00.8]}
2... g6 {[%clk 0:03:01]} 3. Nc3 {[%clk 0:02:59.7]} 3... d5 {[%clk 0:03:01.6]} 4.
e3 {[%clk 0:02:59]} 4... c6 {[%clk 0:02:59.1]} 5. h4 {[%clk 0:02:58.5]} 5... Qb6
{[%clk 0:02:59]} 6. a3 {[%clk 0:02:57.6]} 6... Bg7 {[%clk 0:02:56.8]} 7. Be2
{[%clk 0:02:51.1]} 7... h5 {[%clk 0:02:56.1]} 8. b4 {[%clk 0:02:46]} 8... a5
{[%clk 0:02:52.2]} 9. b5 {[%clk 0:02:35.6]} 9... a4 {[%clk 0:02:48]} 10. Rb1
{[%clk 0:02:29.6]} 10... Qa5 {[%clk 0:02:47.7]} 11. Qd2 {[%clk 0:02:30.1]} 11...
Nbd7 {[%clk 0:02:42.4]} 12. Nf3 {[%clk 0:02:28.9]} 12... O-O {[%clk 0:02:38.3]}
13. O-O {[%clk 0:02:24.2]} 13... c5 {[%clk 0:02:37.5]} 14. dxc5 {[%clk
0:02:14.3]} 14... Nxc5 {[%clk 0:02:38.4]} 15. Nxd5 {[%clk 0:02:13.1]} 15... Nxd5
{[%clk 0:02:37.9]} 16. Qxd5 {[%clk 0:02:13.5]} 16... b6 {[%clk 0:02:37.3]} 17.
Nd4 {[%clk 0:02:04.7]} 17... e6 {[%clk 0:02:31.1]} 18. Qc4 {[%clk 0:01:59.6]}
18... Bb7 {[%clk 0:02:18.9]} 19. Bf3 {[%clk 0:01:51.8]} 19... Bxf3 {[%clk
0:02:15.4]} 20. gxf3 {[%clk 0:01:52.7]} 20... Rac8 {[%clk 0:02:04.9]} 21. Nc6
{[%clk 0:01:47.5]} 21... Qa8 {[%clk 0:02:04.2]} 22. Bd6 {[%clk 0:01:35]} 22...
Rfe8 {[%clk 0:02:04]} 23. Bxc5 {[%clk 0:01:33.6]} 23... bxc5 {[%clk 0:02:03.8]}
24. Qxc5 {[%clk 0:01:31.3]} 24... Bf6 {[%clk 0:02:03.1]} 25. Qc4 {[%clk
0:01:30.2]} 25... Kh7 {[%clk 0:01:53.4]} 26. Rfd1 {[%clk 0:01:29.6]} 26... Qb7
{[%clk 0:01:52.2]} 27. Rd3 {[%clk 0:01:22]} 27... Rg8 {[%clk 0:01:47.6]} 28.
Rbd1 {[%clk 0:01:19.5]} 28... Rc7 {[%clk 0:01:43.1]} 29. Kf1 {[%clk 0:01:17.6]}
29... g5 {[%clk 0:01:34.2]} 30. hxg5 {[%clk 0:01:12.9]} 30... Rxg5 {[%clk
0:01:35.1]} 31. Qe4+ {[%clk 0:01:12.8]} 31... Rf5 {[%clk 0:01:30.9]} 32. c4
{[%clk 0:01:12.3]} 32... h4 {[%clk 0:01:29]} 33. Ke2 {[%clk 0:01:11.2]} 33...
Qc8 {[%clk 0:01:25]} 34. Rg1 {[%clk 0:01:06]} 34... Qh8 {[%clk 0:01:21.4]} 35.
Rg4 {[%clk 0:01:03.6]} 35... Rc8 {[%clk 0:01:08.3]} 36. Rd5 {[%clk 0:01:01.3]}
36... Rg8 {[%clk 0:00:52]} 37. Rxf5 {[%clk 0:00:59.8]} 37... exf5 {[%clk
0:00:52.9]} 38. Qxf5+ {[%clk 0:00:59.4]} 38... Rg6 {[%clk 0:00:53.4]} 39. Qh5+
{[%clk 0:00:58.9]} 39... Kg7 {[%clk 0:00:52.5]} 40. Qxh8+ {[%clk 0:00:55.3]}
40... Kxh8 {[%clk 0:00:53.4]} 41. Rxg6 {[%clk 0:00:55.2]} 41... fxg6 {[%clk
0:00:54.3]} 42. b6 {[%clk 0:00:54.5]} 42... h3 {[%clk 0:00:54.3]} 43. Kf1 {[%clk
0:00:54.1]} 1-0

[Event "*** Titled Tuesday Blitz"]
[Site "Chess.com"]
[Date "2020.04.28"]
[Round "6"]
[White "SummertimeFun"]
[Black "amiralfio"]
[Result "1-0"]
[WhiteElo "2570"]
[BlackElo "2486"]
[TimeControl "180+1"]
[EndTime "11:06:02 PDT"]
[Termination "SummertimeFun won on time"]

1. d4 {[%clk 0:03:00.9]} 1... Nf6 {[%clk 0:02:52.2]} 2. Nf3 {[%clk 0:03:01.1]}
2... g6 {[%clk 0:02:51.9]} 3. c4 {[%clk 0:02:59.3]} 3... Bg7 {[%clk 0:02:52.3]}
4. g3 {[%clk 0:03:00]} 4... O-O {[%clk 0:02:51.8]} 5. Bg2 {[%clk 0:02:59.1]}
5... d5 {[%clk 0:02:49.6]} 6. O-O {[%clk 0:03:00]} 6... dxc4 {[%clk 0:02:49.3]}
7. Qc2 {[%clk 0:02:57.5]} 7... b5 {[%clk 0:02:44.1]} 8. Ne5 {[%clk 0:02:55.8]}
8... c6 {[%clk 0:02:42.7]} 9. Rd1 {[%clk 0:02:52.3]} 9... Bb7 {[%clk 0:02:39.9]}
10. b3 {[%clk 0:02:51.7]} 10... cxb3 {[%clk 0:02:27.2]} 11. axb3 {[%clk
0:02:52.6]} 11... Nfd7 {[%clk 0:02:24]} 12. Nc3 {[%clk 0:02:48.9]} 12... a6
{[%clk 0:02:11.9]} 13. Bf4 {[%clk 0:02:44.3]} 13... Qc8 {[%clk 0:01:55]} 14.
Rac1 {[%clk 0:02:40.4]} 14... Nxe5 {[%clk 0:01:16.4]} 15. dxe5 {[%clk
0:02:41.3]} 15... Nd7 {[%clk 0:01:14]} 16. Bh3 {[%clk 0:01:50.8]} 16... e6
{[%clk 0:01:08.9]} 17. Ne4 {[%clk 0:01:50.5]} 17... Nxe5 {[%clk 0:01:02.9]} 18.
Qc5 {[%clk 0:01:40.2]} 18... Qc7 {[%clk 0:00:42.9]} 19. Nd6 {[%clk 0:01:38.3]}
19... Nd7 {[%clk 0:00:39.5]} 20. Qe3 {[%clk 0:01:33.4]} 20... e5 {[%clk
0:00:26.7]} 21. Bg5 {[%clk 0:01:31.5]} 21... Nb6 {[%clk 0:00:15.6]} 22. Bg2
{[%clk 0:01:25.3]} 22... f6 {[%clk 0:00:09.3]} 23. Nxb7 {[%clk 0:01:15.2]} 23...
fxg5 {[%clk 0:00:05.6]} 24. Rxc6 {[%clk 0:01:14.6]} 24... Qxb7 {[%clk
0:00:04.8]} 25. Rxb6 {[%clk 0:01:12.9]} 25... Qxb6 {[%clk 0:00:05.7]} 26. Qxb6
{[%clk 0:01:12.3]} 26... Rab8 {[%clk 0:00:04.2]} 27. Qe6+ {[%clk 0:01:11.5]}
27... Kh8 {[%clk 0:00:04.1]} 28. Rd7 {[%clk 0:01:11.1]} 28... Rbe8 {[%clk
0:00:04]} 29. Qxa6 {[%clk 0:01:10.1]} 29... e4 {[%clk 0:00:03.7]} 30. Qb7 {[%clk
0:01:08.7]} 30... Rg8 {[%clk 0:00:03.8]} 31. Bxe4 {[%clk 0:01:08.5]} 31... Ref8
{[%clk 0:00:02.9]} 32. Bd5 {[%clk 0:01:08.6]} 1-0